Cogmind - Beta 15 @@@ ROGUE MODE // 2025.06.06 @ 00:03:33 Player: McSaucyNugget Result: Self-destructed Performance ------------- Evolutions (8) 4000 Regions Visited (15) 3000 Robots Destroyed (228) 1140 Value Destroyed (9381) 9381 Prototype IDs (36) 720 Alien Tech Used (0) 0 Bonus (4994) 4994 TOTAL SCORE: 23235 Bonus ------- High Alert Combat Kills 939 Follower Combat Kills 986 Met Data Miner 300 Built Enhanced Grunts 300 A7 Reached Mainframe 300 Met R17 at Cetus 500 Met R17 at Research 2000 Scanned by Researcher 500 Friendly Fire -831 Cogmind --------- Core Integrity 1374/1450 Matter 279/300 Energy 710/710 System Corruption 0% Temperature Cool (0) Movement Core (800) Ox15 Location -2/Research Parts ------- > --- POWER (2) -------- Reinforced Fission Core > --- PROPULSION (6) --- (None) > --- UTILITY (12) ----- Advanced Coolant Injector Large Storage Unit Improved Energy Well Experimental Signal Interpreter Advanced Terrain Scanner Advanced Terrain Scan Processor Improved Weapon Cycler > --- WEAPON (3) ------- (None) > --- INVENTORY (15) --- Light Antimatter Reactor Advanced Cooling System Improved Energy Well (400) Improved Energy Well (400) Advanced Sensor Array Advanced Terrain Scanner Point Defense System Improved Potential Cannon Improved KE Penetrator Linear Accelerator Linear Accelerator Improved Plasma Cutter Peak State ------------ > --- POWER ------------ Neutrino Core Light Antimatter Reactor > --- PROPULSION ------- Enhanced Armored Medium Treads Centrium Heavy Treads Centrium Heavy Treads > --- UTILITY ---------- Advanced Cryofiber Web Advanced Heat Sink Advanced Heat Sink Large Storage Unit Advanced Terrain Scanner Advanced Transmission Jammer Improved Medium Armor Plating Centrium Medium Armor Plating Hacking Suite > --- WEAPON ----------- Advanced Variable Charge Gun Neutron Cannon Neutron Cannon > --- INVENTORY -------- Antimatter Reactor Armored Medium Treads Centrium Heavy Treads Advanced Cooling System Advanced Sensor Array Advanced Particle Charger Improved Weapon Shielding Hardened Heavy Armor Plating Centrium Medium Armor Plating Centrium Medium Armor Plating Long-range Proton Cannon Heavy Rocket Launcher Improved Plasma Cutter [Rating: 134] Favorites ----------- Power Neutrino Core Engine Improved Deuterium Engine Power Core Neutrino Core Reactor Light Antimatter Reactor Propulsion Armored Wheel Treads Armored Medium Treads Leg Improved Titanium Leg Wheel Armored Wheel Utility Large Storage Unit Device Advanced Heat Sink Storage Large Storage Unit Processor Advanced Targeting Computer Hackware Hacking Suite Protection Layered Medium Armor Plating Weapon Gauss Rifle Energy Gun Gatling Laser Energy Cannon Compact HERF Cannon Ballistic Gun Gauss Rifle Ballistic Cannon Enhanced Gauss Cannon Launcher Heavy Shock Bomb Launcher Special Weapon Improved Plasma Cutter Impact Weapon Flail Piercing Weapon Spear Build | -11 -10 -9 -8 -7 -7 -7 -6 -6 -5 -5 -5 -4 -3 -3 -2 ------- Run | Yrd Mat Mat Mat Fac Low Dat Pro Fac Fac Ext Cet Fac Res Tes Res Slots Evolved 16 | . . 2 2 2 . . . 2 2 . . 2 2 . 2 Power 1 | . . . . . . . . . 1 . . . . . . Propulsion 4 | . . 1 1 . . . . 1 . . . . 1 . . Utility 10 | . . 1 1 1 . . . 1 1 . . 2 1 . 2 Weapon 1 | . . . . 1 . . . . . . . . . . . Parts Attached 194 | 7 6 21 21 10 5 . 6 22 7 16 14 26 17 16 . Power 24 | 1 . 1 3 1 . . 1 2 1 3 1 6 2 2 . Engine 4 | 1 . 1 . 1 . . . 1 . . . . . . . Core 12 | . . . 3 . . . 1 1 1 3 . 2 1 . . Reactor 8 | . . . . . . . . . . . 1 4 1 2 . Propulsion 50 | 2 2 8 6 2 1 . 4 4 3 4 3 3 3 5 . Treads 22 | 2 . 2 1 1 1 . . 2 1 . 3 3 3 3 . Leg 13 | . . . . . . . 4 2 2 4 . . . 1 . Wheel 15 | . 2 6 5 1 . . . . . . . . . 1 . Hover . | . . . . . . . . . . . . . . . . Flight . | . . . . . . . . . . . . . . . . Utility 63 | 2 2 4 6 3 1 . 1 9 1 4 3 14 8 5 . Device 24 | 1 . 1 3 . 1 . . 4 1 3 . 7 2 1 . Storage 6 | 1 2 . . . . . . 1 . . . . . 2 . Processor 8 | . . . 1 . . . . 1 . . . 1 4 1 . Hackware 4 | . . . 1 1 . . . 1 . 1 . . . . . Protection 21 | . . 3 1 2 . . 1 2 . . 3 6 2 1 . Artifact . | . . . . . . . . . . . . . . . . Weapon 57 | 2 2 8 6 4 3 . . 7 2 5 7 3 4 4 . Energy Gun 15 | 1 2 3 1 1 . . . 1 . 3 3 . . . . Energy Cannon 13 | . . 3 2 . 1 . . . . . 1 3 2 1 . Ballistic Gun 15 | 1 . 1 2 2 1 . . 4 1 1 1 . . 1 . Ballistic Cannon 6 | . . . . . . . . 1 . 1 . . 2 2 . Launcher 5 | . . . 1 1 1 . . . 1 . 1 . . . . Special Weapon 1 | . . . . . . . . . . . 1 . . . . Impact Weapon 1 | . . 1 . . . . . . . . . . . . . Slashing Weapon . | . . . . . . . . . . . . . . . . Piercing Weapon 1 | . . . . . . . . 1 . . . . . . . Special Melee Weapon . | . . . . . . . . . . . . . . . . Unidentified Prototypes 13 | . . 1 1 . . . . . . . 5 1 1 4 . Corrupted Parts 11 | . . . . . . . . . . . 8 1 1 1 . System Corruption 64 | . . . . . . . . . . . 55 3 3 3 . Parts Lost 82 | . 1 9 7 2 . . 12 1 4 4 . 19 3 15 5 Power 10 | . . . 1 . . . 2 . 1 1 . 3 . 1 1 Propulsion 23 | . . 5 3 . . . 3 1 1 1 . 2 . 7 . Utility 28 | . . 2 3 1 . . 3 . 1 1 . 9 2 5 1 Weapon 21 | . 1 2 . 1 . . 4 . 1 1 . 5 1 2 3 Highest Loss Streak 9 | . 1 5 5 1 . . 9 1 4 2 . 8 3 5 5 To Critical Strikes 1 | . . . . . . . . . . . . 1 . . . Average Backups 16 | 4 8 19 24 24 25 25 24 14 14 14 14 12 12 12 12 Power 1 | . 1 1 2 2 2 2 1 . . . . . . . 1 Propulsion 3 | 2 4 4 4 6 6 6 5 1 1 2 1 1 1 1 . Utility 6 | . 2 7 7 8 9 9 9 6 6 6 6 6 6 5 6 Weapon 5 | . . 5 9 7 7 7 6 5 4 5 5 3 3 3 4 Tool/Special . | . . . . . . . . . . . . . . . . Unused Backups 75 | . 3 7 9 13 . . . 9 3 9 7 3 3 3 6 Power 6 | . . . 2 1 . . . 1 1 . . . . . 1 Propulsion 17 | . 2 . 1 7 . . . . . 2 3 . 2 . . Utility 26 | . . 2 1 1 . . . 4 2 5 3 3 . 2 3 Weapon 25 | . 1 5 5 4 . . . 3 . 2 1 . 1 1 2 Tool/Special 1 | . . . . . . . . 1 . . . . . . . Average Slot Usage (%) 91 | . 99 95 96 96 92 92 86 97 99 99 89 85 68 81 55 Engine 3 | . 14 11 3 4 7 7 5 3 4 1 . . . . . Core 3 | . . . 5 2 . . 1 2 4 8 5 4 2 4 4 Reactor 1 | . . . . . . . . . . . 4 4 2 3 3 Treads 9 | . 17 8 1 7 7 7 5 7 5 2 14 14 15 17 . Leg 8 | . . . . . . . . 24 22 25 4 . . . . Wheel 7 | . 10 23 32 19 15 15 14 . . . . . . . . Device 15 | . 14 10 15 12 10 15 14 8 20 18 11 21 15 19 16 Storage 6 | . 14 11 9 7 7 7 7 6 5 5 5 5 4 4 8 Processor 5 | . . . 6 7 7 7 7 12 7 3 . 1 11 10 8 Hackware 2 | . . . . 2 4 . . 2 . 5 5 5 . . . Protection 6 | . . 8 3 6 7 7 6 6 5 5 16 11 4 4 . Energy Gun 6 | . 13 9 7 6 7 7 6 3 5 8 10 8 . . . Energy Cannon 2 | . . 5 6 . 7 7 6 . . . . 5 4 3 7 Ballistic Gun 6 | . 14 7 2 14 6 7 5 10 9 6 . . . . 3 Ballistic Cannon 1 | . . . . . . . . 2 . . . . 4 7 . Peak Build Rating 134 | 7 8 24 33 49 49 49 49 63 78 82 121 134 128 134 89 Average Rating 68 | 5 7 17 28 43 48 49 46 56 74 77 108 124 112 115 86 On Entrance 53 | . 7 8 24 33 49 49 49 26 62 76 78 121 60 128 89 Naked Turns . | . . . . . . . . . . . . . . . . Heaviest Build 116 | 12 87 103 104 111 113 111 114 57 69 77 92 92 115 116 87 Greatest Support 195 | 40 40 36 52 40 40 40 74 94 78 85 187 195 195 195 3 Greatest Overweight (x) 28 | . 2 6 2 4 2 2 2 1 . 1 1 . . 28 28 Average Overweight (x) . | . . 2 1 2 2 2 1 . . . . . . . 27 Largest Inventory Capacity 25 | 8 25 25 25 25 25 25 25 25 15 15 15 15 15 15 15 Average Capacity 18 | 7 14 25 25 25 25 25 25 15 15 15 15 15 15 15 15 Most Carried 25 | 6 14 25 25 25 25 25 25 19 15 15 15 15 15 15 13 Average Carried 16 | 4 8 19 24 24 24 25 24 14 14 14 14 14 13 13 13 Final Capacity 25 | 8 25 25 25 25 25 25 25 15 15 15 15 15 15 15 15 Final Carried 25 | 6 14 25 25 25 25 25 20 14 15 15 15 9 15 13 13 Class Distribution -------------------- 28% | Mutant 18% | Gunner 17% | Scavenger-Tank 17% | Scavenger-Skirmisher 12% | Skirmisher 4% | Scavenger-Mutant Dominant Class ---------------- Mutant | -10/Materials Mutant | -9/Materials Mutant | -8/Materials Gunner | -7/Factory Gunner | -7/Lower Caves Gunner | -7/Data Miner Gunner | -6/Proximity Caves Gunner | -6/Factory Scavenger-Skirmisher | -5/Factory Skirmisher | -5/Extension Scavenger-Tank | -5/Cetus Scavenger-Tank | -4/Factory Scavenger-Skirmisher | -3/Research Scavenger-Skirmisher | -3/Testing Skirmisher | -2/Research Resources | -11 -10 -9 -8 -7 -7 -7 -6 -6 -5 -5 -5 -4 -3 -3 -2 ----------- Run | Yrd Mat Mat Mat Fac Low Dat Pro Fac Fac Ext Cet Fac Res Tes Res Matter Collected 6265 | 143 231 251 320 525 233 . 64 781 411 863 242 593 556 1052 . Remotely . | . . . . . . . . . . . . . . . . Salvage Created 9870 | 127 283 813 932 932 112 . 215 815 564 1461 382 1690 435 1109 . Parts 433 | 9 16 49 40 51 6 . 8 31 32 50 17 70 18 36 . Haulers Intercepted 4 | . . 1 1 . . . . 1 . . . . . 1 . Recyclers Shooed 11 | 1 1 2 . 1 . . . . 3 2 . 1 . . . Parts Field Recycled . | . . . . . . . . . . . . . . . . Retrieved Matter . | . . . . . . . . . . . . . . . . Parts Self-Destructed 11 | . . . . . 4 . 7 . . . . . . . . Prevented . | . . . . . . . . . . . . . . . . Kills | -11 -10 -9 -8 -7 -7 -7 -6 -6 -5 -5 -5 -4 -3 -3 -2 ------- Run | Yrd Mat Mat Mat Fac Low Dat Pro Fac Fac Ext Cet Fac Res Tes Res Combat Hostiles Destroyed 160 | . 9 19 15 19 5 . 6 10 6 15 4 30 6 16 . Melee 1 | . . . . . . . . . . . . . . 1 . Guns 62 | . 7 8 8 9 1 . . 7 5 6 . 11 . . . Cannons 43 | . . 10 5 . 1 . . 2 . . . 5 6 14 . AOE 48 | . 2 1 2 10 3 . 6 1 1 8 . 14 . . . Classes Destroyed 17 | 2 2 4 3 1 . . . . . . . 3 1 1 . Worker 17 | . . 2 1 3 . . . 2 2 2 . 3 2 . . Builder 7 | . . . 1 2 . . . 1 . 1 . 2 . . . Tunneler 3 | 2 . . 1 . . . . . . . . . . . . Hauler 4 | . . 1 1 . . . . 1 . . . . . 1 . Recycler 23 | 1 1 2 2 3 . . . 2 2 6 . 2 . 2 . Operator 4 | . . . 1 1 . . . . . 2 . . . . . Watcher 8 | . . 1 2 . . . . 1 1 1 2 . . . . Swarmer 42 | . 6 10 . 4 2 . 1 4 . 6 . 4 2 3 . Grunt 57 | . 3 6 11 9 2 . 5 . 1 6 . 8 . 6 . Brawler 2 | . . . . . . . . . . . . 2 . . . Protector 1 | . . . . . . . . . . . . 1 . . . Researcher 1 | . . . . . . . . . . . . . . 1 . Sentry 20 | . . 3 3 2 1 . . 3 1 3 . 2 2 . . Hunter 13 | . . . 1 2 . . . . 2 . . 6 2 . . Programmer 20 | . . . . 2 . . . 3 2 . . 6 . 7 . Heavy 1 | . . . . . . . . . . . . 1 . . . Cetus Guard 4 | . . . . . . . . . . . 4 . . . . Revision 1 | . . . . . . . . . . . . . 1 . . Best Kill Streak 12 | 3 4 12 6 7 5 . 4 6 3 8 3 9 2 5 . Combat Bots Only 10 | . 3 10 3 5 5 . 4 4 2 6 2 6 2 5 . Max Kills in Single Turn 4 | 1 2 4 2 2 3 . 2 2 2 4 1 2 2 1 . Gunslinging 1 | . . . . 1 . . . . . . . . . . . Exploded 4 | . 2 1 2 2 3 . 2 1 1 4 . 2 . . . Melee 1 | . . . . . . . . . . . . . . 1 . Uniques/NPCs Destroyed . | . . . . . . . . . . . . . . . . Combat | -11 -10 -9 -8 -7 -7 -7 -6 -6 -5 -5 -5 -4 -3 -3 -2 -------- Run | Yrd Mat Mat Mat Fac Low Dat Pro Fac Fac Ext Cet Fac Res Tes Res Hostile Shots Fired 1525 | . 62 78 103 133 37 . 92 105 55 58 23 461 65 223 30 Missed 467 | . 13 14 39 38 21 . 32 29 14 24 12 135 17 66 13 Hits 1058 | . 49 64 64 95 16 . 60 76 41 34 11 326 48 157 17 Melee 6 | . . . . . . . 4 . . . . 2 . . . Projectile 1052 | . 49 64 64 95 16 . 56 76 41 34 11 324 48 157 17 AOE 1 | . . . . . . . . . . . . 1 . . . Critical Strikes 45 | . . . 4 4 . . 1 2 . 2 2 9 . 21 . Actively Blocked 1 | . . . . . . . . . . . . 1 . . . Part Disruptions 6 | . . . . . . . . . 1 . . 1 . 4 . Damage Taken 20249 | . 461 710 1050 1289 200 . 1391 910 948 1219 172 6685 1321 3501 392 Core 1854 | . 96 80 164 269 24 . 181 53 79 66 28 420 39 279 76 Absorbed by Shields 206 | . . . . . . . . . . 92 114 . . . . Reduced by Siege Mode 102 | . . . . . . . . . . . . 102 . . . Redirected to Shielding 200 | . . . . . . . . . . . . 200 . . . Regen/Repaired (Parts) 174 | . . 83 . . . . . 91 . . . . . . . Core Remaining (%) 72 | 100 61 80 70 . . . 32 93 . . 82 63 . 75 . Volleys Fired 513 | 8 41 49 65 56 4 . 5 30 22 58 10 77 27 60 1 Largest 3 | 2 2 2 2 3 3 . 1 3 3 3 3 3 3 3 3 Hottest 720 | 60 60 136 136 133 178 . 39 148 141 201 208 720 188 221 221 Shots Fired 1156 | 16 80 98 127 122 8 . 7 81 56 139 13 188 67 151 3 Gun 729 | 16 80 73 81 105 4 . 1 67 52 122 3 106 . 18 1 Cannon 353 | . . 25 43 . 2 . . 14 . 1 . 66 67 133 2 Launcher 74 | . . . 3 17 2 . 6 . 4 16 10 16 . . . Special . | . . . . . . . . . . . . . . . . Kinetic 486 | 8 41 18 28 66 2 . . 63 35 67 . . 41 116 1 Thermal 449 | . . 43 96 39 4 . 1 18 17 56 3 171 1 . . Explosive 64 | . . . 3 17 2 . 6 . 4 16 . 16 . . . Electromagnetic 157 | 8 39 37 . . . . . . . . 10 1 25 35 2 Robot Hit Streak 23 | 5 5 15 14 15 8 . 13 10 23 9 8 16 4 7 10 Robot Miss Streak 8 | 1 4 2 3 5 1 . . 8 7 6 . 4 6 8 . Penetration Max 1 | . . . . . . . . . 1 . . . 1 1 1 Secondary Targets 5 | . 2 . 1 1 . . . . . 1 . . . . . Max Gunslinging Chain 1 | . 1 . 1 1 . . . . . 1 . . . . . Shots Hit Robots 683 | 11 37 67 92 74 4 . 5 62 39 76 7 109 27 70 3 Core Hits 500 | 4 22 34 43 57 8 . 32 51 37 62 16 94 14 25 1 Critical Kills 7 | . . . 1 . . . . 1 1 4 . . . . . Critical Parts Destroyed 5 | . . . . . . . . . . 5 . . . . . Critical Strikes 32 | . . 2 2 . . . . 2 1 11 . . 7 7 . Burn 5 | . . 2 1 . . . . . . 2 . . . . . Destroy 12 | . . . 1 . . . . 1 1 9 . . . . . Blast 13 | . . . . . . . . 1 . . . . 5 7 . Corrupt 2 | . . . . . . . . . . . . . 2 . . Melee Attacks 30 | . . 1 3 4 . . . 10 1 11 . . . . . Impact 8 | . . 1 3 4 . . . . . . . . . . . Slashing . | . . . . . . . . . . . . . . . . Piercing 22 | . . . . . . . . 10 1 11 . . . . . Sneak Attacks 1 | . . . . . . . . 1 . . . . . . . Combat Hostiles . | . . . . . . . . . . . . . . . . Follow-up Attacks . | . . . . . . . . . . . . . . . . Damage Inflicted 26799 | 155 517 1282 2396 2593 407 . 1025 1675 1411 2829 1239 6881 1187 3070 132 Guns 9890 | 109 379 762 1273 1300 45 . . 1165 986 1333 77 2135 . 283 43 Cannons 6495 | . . 346 532 . 26 . . 146 . 30 . 1438 1180 2708 89 Explosions 10137 | 46 138 174 591 1293 336 . 994 251 425 1431 1162 3296 . . . Melee 116 | . . . . . . . . 81 . 35 . . . . . Ramming 161 | . . . . . . . 31 32 . . . 12 7 79 . Kinetic 6331 | 42 160 140 468 616 . . . 944 609 545 . . 648 2116 43 Thermal 8697 | 46 138 496 1337 684 71 . . 367 548 818 393 3799 . . . Explosive 7970 | . . 174 591 1293 336 . 994 . 254 1431 . 2897 . . . Electromagnetic 3524 | 67 219 472 . . . . . 251 . . 846 173 532 875 89 Impact . | . . . . . . . . . . . . . . . . Slashing . | . . . . . . . . . . . . . . . . Piercing 116 | . . . . . . . . 81 . 35 . . . . . Highest Corruption 63 | . . . . 2 2 2 4 3 2 8 63 7 3 33 . Average Corruption 6 | . . . . 1 2 2 2 1 1 2 31 5 3 12 . Corruption Purged . | . . . . . . . . . . . . . . . . Corruption Blocked . | . . . . . . . . . . . . . . . . Effects 174 | . . . . 7 3 . 8 4 3 33 24 28 12 52 . Message Errors 40 | . . . . . . . 2 1 . 10 10 7 . 10 . Matter Fused 33 | . . . . 2 1 . 3 2 . 6 3 6 3 7 . Heat Flow Errors 19 | . . . . 2 1 . . . 1 2 3 5 2 3 . Energy Discharges 25 | . . . . 1 . . . . . 4 3 4 3 10 . Parts Rejected 4 | . . . . 1 . . . . . . . 2 . 1 . Parts Fused 3 | . . . . . . . . . . . 1 . . 2 . Data Loss (minor) 20 | . . . . 1 . . 1 . 2 6 2 . 2 6 . Data Loss (major) 8 | . . . . . 1 . . 1 . 2 1 1 1 1 . Misfires 5 | . . . . . . . 2 . . . 1 1 1 . . Alerts 5 | . . . . . . . . . . 2 . 1 . 2 . Misdirections 3 | . . . . . . . . . . . . . . 3 . Weapon Failures 9 | . . . . . . . . . . 1 . 1 . 7 . Overload Shots 4 | . . . . . . . . . . . . 4 . . . Overflow Damage 489 | . . 2 52 42 . . 4 10 74 24 . 156 12 113 . Projectiles 197 | . . 2 5 . . . . 10 . . . 55 12 113 . Explosions 287 | . . . 47 42 . . 4 . 74 19 . 101 . . . Melee 5 | . . . . . . . . . . 5 . . . . . Knockbacks 22 | . . . . . . . . 1 . . . . 2 19 . Impact . | . . . . . . . . . . . . . . . . Kinetic 21 | . . . . . . . . 1 . . . . 2 18 . Secondary 1 | . . . . . . . . . . . . . . 1 . Self-Inflicted Damage 858 | . 12 79 . 168 20 . 63 . 197 35 . 284 . . . Shots 21 | . 1 1 . 8 1 . 2 . 2 1 . 5 . . . Rammed 10 | . . . . . . . 3 . . . . 2 2 3 . Targets Rammed 17 | . . . . . . . 6 2 . . . 2 3 4 . Kicked 5 | . . . . . . . 3 2 . . . . . . . Crushed 2 | . . . . . . . . . . . . . 1 1 . Highest Temperature 340 | 40 73 215 117 251 230 . 9 238 319 340 187 241 199 198 126 Average Temperature 70 | 19 22 58 38 46 112 . 4 72 105 66 70 74 90 79 65 Received Heat Transfer 3009 | . 105 132 585 321 57 . 342 102 45 192 8 795 105 157 63 Effects 2 | . . . . 1 . . . . 1 . . . . . . Energy Bleed 1 | . . . . 1 . . . . . . . . . . . Matter Decay 1 | . . . . . . . . . 1 . . . . . . Siege Activations 2 | . . . . . . . . . . . . 2 . . . Total Turns 43 | . . . . . . . . . . . . 43 . . . Longest Duration 39 | . . . . . . . . . . . . 39 . . . Martial Activations . | . . . . . . . . . . . . . . . . Shielding Activations . | . . . . . . . . . . . . . . . . Robots Disrupted 1 | . . . . . . . . . . . . . . . 1 Combat Hostiles 1 | . . . . . . . . . . . . . . . 1 Robots Corrupted 6 | . . . . . . . . . . . 4 . . 2 . Combat Hostiles 5 | . . . . . . . . . . . 4 . . 1 . Parts Fried 15 | . . 3 . . . . . 1 . . 3 . 1 7 . Impact Corruptions . | . . . . . . . . . . . . . . . . Robots Melted 1 | . . . . . . . . . . 1 . . . . . Combat Hostiles 1 | . . . . . . . . . . 1 . . . . . Parts Melted 24 | . . 3 3 1 . . . 6 . 2 . 8 . 1 . Heat Transferred 12481 | 50 200 1295 2590 1469 137 . . 800 925 1610 392 3013 . . . Parts Sabotaged . | . . . . . . . . . . . . . . . . Parts Stolen . | . . . . . . . . . . . . . . . . Parts Stripped . | . . . . . . . . . . . . . . . . Power Chain Reactions 9 | 1 2 1 . . . . . . . . 2 3 . . . Alert | -11 -10 -9 -8 -7 -7 -7 -6 -6 -5 -5 -5 -4 -3 -3 -2 ------- Run | Yrd Mat Mat Mat Fac Low Dat Pro Fac Fac Ext Cet Fac Res Tes Res Maximum Alert Level 4 | . . 1 1 1 . . . 1 1 2 1 4 2 1 . Low Security (%) 56 | 100 100 48 43 74 . . . 81 95 56 . 22 . 73 100 Level 1 21 | . . 51 56 25 . . . 18 4 3 100 . 5 26 . Level 2 13 | . . . . . . . . . . 40 . 9 94 . . Level 3 7 | . . . . . . . . . . . . 61 . . . Level 4 . | . . . . . . . . . . . . 6 . . . Level 5 . | . . . . . . . . . . . . . . . . High Security . | . . . . . . . . . . . . . . . . Max Security . | . . . . . . . . . . . . . . . . Peak Influence 1317 | 10 92 302 309 288 . . . 289 215 508 376 1317 664 357 24 Initial 664 | . . 16 101 94 . . . 15 79 58 258 172 664 357 24 Average 246 | 1 28 139 205 168 . . . 129 102 211 289 710 538 120 5 Influence Increases 7577 | 15 277 624 617 704 100 . 185 534 321 1036 308 1917 357 582 . Destroy 0b10 Robot/C 3600 | . 180 380 300 380 100 . 140 200 120 460 160 720 120 340 . Destroy 0b10 Robot/NC 345 | 15 5 30 45 40 . . . 35 25 65 10 50 10 15 . Destroy Leader 726 | . 40 84 76 100 . . 10 74 32 64 . 184 30 32 . Allied During Kill 350 | . . . . . . . 5 . . 47 93 205 . . . Successful Hack 136 | . . 36 32 12 . . . . . 27 . 24 . 5 . Select Force Hacks 30 | . 30 . . . . . . . . . . . . . . Disable Machine 885 | . . 15 45 75 . . . 180 60 30 15 375 15 75 . Anti-Garrison Action 150 | . . . . . . . . . . . . . 150 . . Destroy Structure 965 | . 7 34 44 97 . . . 15 84 208 30 344 32 70 . Partial Spotted 15 | . . . 15 . . . . . . . . . . . . Lose Combat Pursuer 375 | . 15 45 60 . . . 30 30 . 135 . 15 . 45 . Influence Decreases 7577 | 15 237 424 649 754 159 99 160 395 366 693 462 959 988 1173 44 Entered New Map 1831 | . . 24 139 114 59 99 . 10 85 61 204 136 602 278 20 Time Decay 4227 | 15 227 320 440 470 100 . 56 385 241 427 238 553 356 375 24 Lost Part 723 | . 10 80 70 20 . . 104 . 40 37 . 190 30 142 . Lost Ally 220 | . . . . . . . . . . 120 20 80 . . . Purge Threat 576 | . . . . 150 . . . . . 48 . . . 378 . Squads Dispatched 47 | . 4 1 3 6 . . 1 8 1 1 . 11 5 6 . Investigation 7 | . 2 1 1 2 . . . . . . . . . 1 . Extermination 15 | . . . . 3 . . . 4 1 . . 4 . 3 . Reinforcement 19 | . 2 . 2 . . . . 4 . 1 . 3 5 2 . Assault 4 | . . . . . . . 1 . . . . 3 . . . Garrison 2 | . . . . 1 . . . . . . . 1 . . . Intercept . | . . . . . . . . . . . . . . . . Searches Triggered . | . . . . . . . . . . . . . . . . Data Miner Redirects 1 | . . . . . . . . . . . . 1 . . . Construction Impeded 3 | . . . . . . . . 2 . . . . 1 . . Haulers Reinforced 4 | . . . . . . . . 1 . . . 1 1 1 . Active Scanning Responses . | . . . . . . . . . . . . . . . . Cargo Convoy Interrupts . | . . . . . . . . . . . . . . . . Stealth | -11 -10 -9 -8 -7 -7 -7 -6 -6 -5 -5 -5 -4 -3 -3 -2 --------- Run | Yrd Mat Mat Mat Fac Low Dat Pro Fac Fac Ext Cet Fac Res Tes Res Distress Signals 18 | . . . 3 . . . . 1 . 1 2 3 4 4 . Communications Jammed 42 | . . . . . . . . . . 8 . 34 . . . Distress Signals 35 | . . . . . . . . . . 8 . 27 . . . Times Spotted 299 | . 24 25 27 25 5 . 16 16 7 30 9 58 22 30 5 Peak Tracking Total 14 | . 5 7 5 4 5 . 9 3 2 9 5 14 5 5 4 Tactical Retreats 19 | . 1 3 2 . . . 2 2 . 5 . 1 . 3 . Traps | -11 -10 -9 -8 -7 -7 -7 -6 -6 -5 -5 -5 -4 -3 -3 -2 ------- Run | Yrd Mat Mat Mat Fac Low Dat Pro Fac Fac Ext Cet Fac Res Tes Res Traps Triggered 12 | . 1 . 1 5 . . . 1 . . . . . 4 . Indirectly . | . . . . . . . . . . . . . . . . Trap Hack Attempts . | . . . . . . . . . . . . . . . . Triggered . | . . . . . . . . . . . . . . . . Disarmed . | . . . . . . . . . . . . . . . . Reprogrammed . | . . . . . . . . . . . . . . . . Reused . | . . . . . . . . . . . . . . . . Traps Extracted . | . . . . . . . . . . . . . . . . Installed . | . . . . . . . . . . . . . . . . Triggered . | . . . . . . . . . . . . . . . . Machines | -11 -10 -9 -8 -7 -7 -7 -6 -6 -5 -5 -5 -4 -3 -3 -2 ---------- Run | Yrd Mat Mat Mat Fac Low Dat Pro Fac Fac Ext Cet Fac Res Tes Res Machines Disabled 64 | . 1 1 3 5 . . . 12 4 4 1 25 2 6 . Max in Single Turn 7 | . 1 1 1 2 . . . 7 4 2 1 4 1 1 . Garrison Access 1 | . . . . . . . . . . . . . 1 . . Machines Repaired . | . . . . . . . . . . . . . . . . Machines Dismantled 1 | . . . . . . . . . . . 1 . . . . Machines Sabotaged . | . . . . . . . . . . . . . . . . Overloaded Fab Kills . | . . . . . . . . . . . . . . . . Hacking | -11 -10 -9 -8 -7 -7 -7 -6 -6 -5 -5 -5 -4 -3 -3 -2 --------- Run | Yrd Mat Mat Mat Fac Low Dat Pro Fac Fac Ext Cet Fac Res Tes Res Machines Accessed 61 | . 4 8 7 4 . 4 . 8 1 9 . 5 3 8 . Terminals 41 | . 3 6 7 4 . . . 3 . 9 . 2 2 5 . Fabricators 2 | . . . . . . . . 1 . . . . . 1 . Repair Stations 6 | . . 2 . . . . . 2 1 . . 1 . . . Recycling Units 1 | . 1 . . . . . . . . . . . . . . Scanalyzers 2 | . . . . . . . . 1 . . . . . 1 . Garrison Access 5 | . . . . . . . . 1 . . . 2 1 1 . Total Hacks 140 | . 6 19 11 12 . 32 . 11 1 23 . 8 3 14 . Successful 79 | . 5 12 6 4 . 32 . 4 . 7 . 1 . 8 . Failed 61 | . 1 7 5 8 . . . 7 1 16 . 7 3 6 . Catastrophic 17 | . . . 4 1 . . . 3 . 3 . 2 2 2 . Database Lockouts . | . . . . . . . . . . . . . . . . Manual 23 | . 3 . 1 5 . . . . . 12 1 . . 1 . Terminals 82 | . 5 12 11 12 . . . 3 . 23 . 4 2 10 . Fabricators 2 | . . . . . . . . 1 . . . . . 1 . Repair Stations 14 | . . 7 . . . . . 4 1 . . 2 . . . Recycling Units 1 | . 1 . . . . . . . . . . . . . . Scanalyzers 2 | . . . . . . . . 1 . . . . . 1 . Garrison Access 7 | . . . . . . . . 2 . . . 2 1 2 . Terminal Hacks 65 | . 4 8 6 3 . 32 . . . 4 . 1 . 7 . Record 11 | . . . . . . 11 . . . . . . . . . Part Schematic 12 | . . . . . . 12 . . . . . . . . . Robot Schematic 6 | . . . . . . 6 . . . . . . . . . Prototype ID Bank 7 | . 2 1 1 . . 3 . . . . . . . . . Level Access Points 2 | . . . 1 . . . . . . . . 1 . . . Branch Access Points 3 | . . 1 1 1 . . . . . . . . . . . Emergency Access Points 2 | . . . . 1 . . . . . . . . . 1 . Terminal Index 2 | . . 1 . . . . . . . . . . . 1 . Alert Level 2 | . 1 . . . . . . . . . . . . 1 . Unreport Threat 5 | . . . . 1 . . . . . 1 . . . 3 . Locate Traps 6 | . . 4 1 . . . . . . 1 . . . . . Dispatch Records 1 | . . 1 . . . . . . . . . . . . . Recall Investigation 2 | . 1 . 1 . . . . . . . . . . . . Recall Reinforcements 1 | . . . . . . . . . . 1 . . . . . Hauler Manifests 1 | . . . 1 . . . . . . . . . . . . Registered Components 1 | . . . . . . . . . . 1 . . . . . Zone Layout 1 | . . . . . . . . . . . . . . 1 . Fabricator Hacks 2 | . . . . . . . . 1 . . . . . 1 . Network Status 1 | . . . . . . . . 1 . . . . . . . Load Schematic 1 | . . . . . . . . . . . . . . 1 . Repair Station Hacks 6 | . . 4 . . . . . 2 . . . . . . . Scan Component 3 | . . 2 . . . . . 1 . . . . . . . Repair 3 | . . 2 . . . . . 1 . . . . . . . Recycling Unit Hacks . | . . . . . . . . . . . . . . . . Scanalyzer 1 | . . . . . . . . 1 . . . . . . . Insert Component 1 | . . . . . . . . 1 . . . . . . . Garrison Access Hacks . | . . . . . . . . . . . . . . . . Unauthorized Hacks 5 | . 1 . . 1 . . . . . 3 . . . . . Terminals 4 | . . . . 1 . . . . . 3 . . . . . Assimilate 2 | . . . . 1 . . . . . 1 . . . . . Botnet 2 | . . . . . . . . . . 2 . . . . . Fabricators . | . . . . . . . . . . . . . . . . Repair Stations . | . . . . . . . . . . . . . . . . Recycling Units 1 | . 1 . . . . . . . . . . . . . . Tunnel 1 | . 1 . . . . . . . . . . . . . . Scanalyzers . | . . . . . . . . . . . . . . . . Garrison Access . | . . . . . . . . . . . . . . . . Data Cores Recovered 1 | . . . . . . . . . . 1 . . . . . Used . | . . . . . . . . . . . . . . . . Hacking Detections 43 | . . 6 5 4 . . . 6 1 7 . 5 3 6 . Full Trace Events 3 | . . . 1 1 . . . . . . . . . 1 . Feedback Events 1 | . . . . 1 . . . . . . . . . . . Corruption 1 | . . . . 1 . . . . . . . . . . . Feedback Blocked . | . . . . . . . . . . . . . . . . Robot Schematics Acquired 6 | . . . . . . 6 . . . . . . . . . Robots Built . | . . . . . . . . . . . . . . . . Authchips . | . . . . . . . . . . . . . . . . Time . | . . . . . . . . . . . . . . . . Total Robot Build Rating . | . . . . . . . . . . . . . . . . Part Schematics Acquired 18 | . . . . . . 12 . . . . . . . 6 . Parts Built . | . . . . . . . . . . . . . . . . Authchips . | . . . . . . . . . . . . . . . . Time . | . . . . . . . . . . . . . . . . Total Part Build Rating . | . . . . . . . . . . . . . . . . Parts Repaired 3 | . . 2 . . . . . 1 . . . . . . . Time 108 | . . 58 . . . . . 50 . . . . . . . Parts Recycled . | . . . . . . . . . . . . . . . . Recycled Matter . | . . . . . . . . . . . . . . . . Retrieved Matter . | . . . . . . . . . . . . . . . . Retrieved Components . | . . . . . . . . . . . . . . . . Parts Scanalyzed . | . . . . . . . . . . . . . . . . Part Schematics Acquired . | . . . . . . . . . . . . . . . . Parts Damaged . | . . . . . . . . . . . . . . . . Bothacking | -11 -10 -9 -8 -7 -7 -7 -6 -6 -5 -5 -5 -4 -3 -3 -2 ------------ Run | Yrd Mat Mat Mat Fac Low Dat Pro Fac Fac Ext Cet Fac Res Tes Res Used RIF Installer . | . . . . . . . . . . . . . . . . Robots Hacked . | . . . . . . . . . . . . . . . . Non-combat . | . . . . . . . . . . . . . . . . Combat . | . . . . . . . . . . . . . . . . Robot Hacks Applied . | . . . . . . . . . . . . . . . . Relay Couplers Released 1 | . . . . . . . . . . . . . 1 . . Machine Destruction 1 | . . . . . . . . . . . . . 1 . . Fabnet Peak Effective % . | . . . . . . . . . . . . . . . . Robots Rewired 3 | . . . . . . . . . . 3 . . . . . Allies Hacked . | . . . . . . . . . . . . . . . . Hacks Repelled . | . . . . . . . . . . . . . . . . Allies | -11 -10 -9 -8 -7 -7 -7 -6 -6 -5 -5 -5 -4 -3 -3 -2 -------- Run | Yrd Mat Mat Mat Fac Low Dat Pro Fac Fac Ext Cet Fac Res Tes Res Total Allies 15 | . . . . 1 . . 1 . . 8 5 . . . . Largest Group 6 | . . . . 1 . . 1 . . 3 6 5 . . . Highest-Rated Group 639 | . . . . 10 . . 96 . . 159 639 543 . . . Highest-Rated Ally 159 | . . . . 10 . . 96 . . 159 159 159 . . . Total Orders . | . . . . . . . . . . . . . . . . Ally Attacks 142 | . . . . . . . 3 . . 68 13 58 . . . Total Damage 3752 | . . . . . . . 92 . . 933 538 2189 . . . Kills 23 | . . . . . . . 1 . . 9 4 9 . . . Allies Corrupted . | . . . . . . . . . . . . . . . . Allies Melted 1 | . . . . . . . . . . 1 . . . . . Intel | -11 -10 -9 -8 -7 -7 -7 -6 -6 -5 -5 -5 -4 -3 -3 -2 ------- Run | Yrd Mat Mat Mat Fac Low Dat Pro Fac Fac Ext Cet Fac Res Tes Res Active Infowar (turns) 11778 | 37 821 449 862 1196 200 98 588 1638 597 2062 7 1429 606 1188 . Optics 1 | . . . . . . . . . . . . . . 1 . Sensors 5343 | . . . . . . . . 584 597 2062 7 306 599 1188 . Terrain 2850 | . . . . . . . . 180 597 . . 606 604 863 . Seismic 5305 | 37 821 449 862 1196 200 98 588 1054 . . . . . . . Jamming 4128 | . . . . . . . . 477 595 2062 4 990 . . . Robot Analysis Total . | . . . . . . . . . . . . . . . . Derelict Logs Recovered 1 | . . . . . . . 1 . . . . . . . . Drone Launches . | . . . . . . . . . . . . . . . . Drone Recoveries . | . . . . . . . . . . . . . . . . Exploration | -11 -10 -9 -8 -7 -7 -7 -6 -6 -5 -5 -5 -4 -3 -3 -2 ------------- Run | Yrd Mat Mat Mat Fac Low Dat Pro Fac Fac Ext Cet Fac Res Tes Res Turns Passed 13886 | 126 821 1115 1098 1196 200 98 631 1656 597 2062 504 1612 817 1191 162 Spaces Moved 7904 | 59 468 599 650 760 139 79 374 1048 391 1338 232 764 411 581 11 Core 18 | 6 . . . . . . . . . . . . . 1 11 Treads 2240 | 53 237 . . . . . . . . . 195 764 411 580 . Legs 2821 | . . . . . . . 7 1048 391 1338 37 . . . . Wheels 2825 | . 231 599 650 760 139 79 367 . . . . . . . . Hover . | . . . . . . . . . . . . . . . . Flight . | . . . . . . . . . . . . . . . . Fastest Speed 50 | 50 130 120 102 120 125 125 125 123 122 122 122 160 160 162 1350 Average Speed 138 | 148 145 135 110 124 125 125 126 124 123 130 166 162 166 167 1440 Slowest Speed 1450 | 160 160 190 120 150 125 125 192 195 125 193 240 163 170 1450 1450 Overloaded Moves . | . . . . . . . . . . . . . . . . Propulsion Burnouts . | . . . . . . . . . . . . . . . . Robots Hopped . | . . . . . . . . . . . . . . . . Potential Cave-ins 27 | . . . . . . . . . . 27 . . . . . Cave-ins Triggered 2 | . . . . . . . . . . 2 . . . . . Exploration Rate (%) 42 | 5 80 57 52 22 16 68 64 31 10 76 75 31 13 71 1 Regions Visited 15 Branch Regions 6 Pre-discovered Areas 2 | . 1 . . . . 1 . . . . . . . . . Known Exits Taken 7 | . . . 1 1 . . . 1 1 . . 1 1 1 . Unknown Exits Taken 8 | 1 1 1 . . 1 1 1 . . 1 1 . . . . Scrap Searched 3 | . . . . . 2 . 1 . . . . . . . . Spaces Dug 112 | . . 1 3 4 . . . 5 1 85 . 7 . 6 . Terrain Destroyed 833 | 4 8 34 53 109 22 . 54 13 54 244 16 170 15 37 . Melee 17 | . . 1 3 4 . . . 5 1 3 . . . . . Projectile 91 | . . . . 2 . . . 8 3 2 . 24 15 37 . AOE 725 | 4 8 33 50 103 22 . 54 . 50 239 16 146 . . . Terrain Rammed . | . . . . . . . . . . . . . . . . Walls Destroyed . | . . . . . . . . . . . . . . . . Machines Disabled . | . . . . . . . . . . . . . . . . Actions | -11 -10 -9 -8 -7 -7 -7 -6 -6 -5 -5 -5 -4 -3 -3 -2 --------- Run | Yrd Mat Mat Mat Fac Low Dat Pro Fac Fac Ext Cet Fac Res Tes Res Total 9818 | 79 541 802 903 920 158 78 518 1318 458 1525 335 974 487 710 12 Wait 674 | . 9 82 121 28 4 . 126 164 14 28 29 45 12 12 . Move 7887 | 58 467 598 649 759 138 78 373 1047 390 1335 231 763 410 580 11 Hop . | . . . . . . . . . . . . . . . . Pick Up 189 | 6 12 32 23 21 2 . . 20 11 17 13 14 7 11 . Fast Attach 80 | 7 . 4 2 11 1 . . 6 . 5 7 8 17 12 . Attach 73 | . 1 8 8 3 1 . 6 9 6 4 1 14 2 10 . Detach 16 | . . . 1 . 1 . . 1 . . 1 4 4 4 . Swap 138 | . 5 13 13 15 4 . 2 13 8 19 10 29 . 7 . Drop 169 | . 6 15 18 23 3 . . 16 6 25 25 18 5 9 . Fire 513 | 8 41 49 65 56 4 . 5 30 22 58 10 77 27 60 1 Melee 30 | . . 1 3 4 . . . 10 1 11 . . . . . Ram 4 | . . . . . . . 3 . . . . . . 1 . Kick 5 | . . . . . . . 3 2 . . . . . . . Crush 9 | . . . . . . . . . . . . 2 3 4 . Escape Stasis 2 | . . . . . . . . . . 2 . . . . . Rewire 21 | . . . . . . . . . . 21 . . . . . Trap . | . . . . . . . . . . . . . . . . Miscellaneous 8 | . . . . . . . . . . . 8 . . . . Route ------- -11/Scrapyard -10/Materials (discovered 2 exits: *Mat / [*Min]) -9/Materials (discovered 3 exits: *Mat x2 / *Min) -8/Materials (discovered 3 exits: *Fac x3) -7/Factory (discovered 4 exits: Sto x2 / *Low x2) -7/Lower Caves -7/Data Miner -6/Proximity Caves -6/Factory (discovered 2 exits: *Fac x2) -5/Factory -5/Extension (discovered 2 exits: *Fac / *Cet) -5/Cetus (discovered 2 exits: *Fac / [*Arc]) -4/Factory (discovered 4 exits: *Res x4) -3/Research -3/Testing -2/Research History --------- Turn | Location | Event 49 | -11/Scrapyard | Discovered new exit (range 15) 127 | -11/Scrapyard | Entered Materials 318 | -10/Materials | Build established: Mutant 487 | -10/Materials | Discovered new exit (range 10) 532 | -10/Materials | Discovered new exit (range 13) 948 | -10/Materials | Entered another Materials area 948 | -9/Materials | Evolved 2 slots: Propulsion x1, Utility x1 1008 | -9/Materials | Repaired Seismic Detector 1153 | -9/Materials | Discovered new exit (range 14) 1312 | -9/Materials | Discovered new exit (range 13) 1491 | -9/Materials | Lost 5 parts (2n2u1w) 1502 | -9/Materials | Destroyed 10 combat bots 1574 | -9/Materials | Repaired Lgt. EM Pulse Cannon 1649 | -9/Materials | Identified exit to Mines 2016 | -9/Materials | Discovered new exit (range 11) 2063 | -9/Materials | Entered another Materials area 2063 | -8/Materials | Evolved 2 slots: Propulsion x1, Utility x1 2813 | -8/Materials | Identified exit to Factory 2924 | -8/Materials | Lost 5 parts (1p3n1u) 3161 | -8/Materials | Entered Factory 3161 | -7/Factory | Evolved 2 slots: Utility x1, Weapon x1 3423 | -7/Factory | Garrison activated, responded to threat 3455 | -7/Factory | Build established: Gunner 4038 | -7/Factory | Identified exit to Storage 4038 | -7/Factory | Identified exit to Lower Caves 4357 | -7/Factory | Entered Lower Caves 4434 | -7/Lower Caves | Attracted the attention of an 0b10 checkpoint 4474 | -7/Lower Caves | A Derelict revealed a hidden shortcut to meet someone special 4557 | -7/Lower Caves | Entered Data Miner 4557 | -7/Data Miner | Discovered new exit (range 6) 4581 | -7/Data Miner | Met Data Miner 4602 | -7/Data Miner | Learned location of Section 7 (-2) 4602 | -7/Data Miner | Acquired the access code to Warlord's prototype stash 4627 | -7/Data Miner | Received God Mode back door access code from Data Miner 4655 | -7/Data Miner | Entered Proximity Caves 5125 | -6/Proximity Caves | Spotted B-75 Beast 5162 | -6/Proximity Caves | Lost 3 parts (1p1n1w) 5242 | -6/Proximity Caves | Attracted the attention of an 0b10 outpost 5248 | -6/Proximity Caves | Core integrity fell below 50% 5255 | -6/Proximity Caves | Discovered new exit (range 9) 5271 | -6/Proximity Caves | Escorted by Enhanced Grunt 5286 | -6/Proximity Caves | Entered Factory 5286 | -6/Factory | Evolved 2 slots: Propulsion x1, Utility x1 5300 | -6/Factory | Lost 9 parts (1p2n3u3w) 6654 | -6/Factory | Discovered new exit (range 5) 6658 | -6/Factory | Identified exit to Factory 6743 | -6/Factory | Repaired Lyr. Medium Armor Plating 6876 | -6/Factory | Discovered exit to Factory (range 4) 6942 | -6/Factory | Entered another Factory area 6942 | -5/Factory | Evolved 2 slots: Power x1, Utility x1 6943 | -5/Factory | Identified exit to Extension 7275 | -5/Factory | Lost 4 parts (1p1n1u1w) 7539 | -5/Factory | Entered Extension 7579 | -5/Extension | Build established: Scavenger-Skirmisher 7579 | -5/Extension | Rescued a captive Derelict 8014 | -5/Extension | Disrupted transfer network 8058 | -5/Extension | Rescued a captive Derelict 8074 | -5/Extension | Build established: Skirmisher 8083 | -5/Extension | Rescued a captive Derelict 8085 | -5/Extension | Rescued a captive Derelict 8298 | -5/Extension | Lost 3 allies 8337 | -5/Extension | Rescued a captive Derelict 8676 | -5/Extension | Discovered new exit (range 10) 8691 | -5/Extension | Disrupted transfer network 8691 | -5/Extension | Discovered new exit (range 8) 8901 | -5/Extension | Build established: Scavenger-Skirmisher 9069 | -5/Extension | Crushed by falling debris 9133 | -5/Extension | Spotted B-75 Beast 9280 | -5/Extension | Rescued A7 9374 | -5/Extension | Build established: Scavenger-Tank 9423 | -5/Extension | Crushed by falling debris 9601 | -5/Extension | Entered Cetus 9601 | -5/Cetus | Accompanied by 1 ally (A7) 9606 | -5/Cetus | Acquired a Cetus Manufacturing Module code from A7 9629 | -5/Cetus | Spotted Cetus Guard 9630 | -5/Cetus | Spotted Cetus Guard 9633 | -5/Cetus | Spotted Cetus Guard 9633 | -5/Cetus | Spotted Cetus Guard 9639 | -5/Cetus | Allies destroyed Cetus Guard 9641 | -5/Cetus | Destroyed Cetus Guard 9642 | -5/Cetus | Allies destroyed Cetus Guard 9643 | -5/Cetus | Destroyed Cetus Guard 9676 | -5/Cetus | System corruption reached 10% 9730 | -5/Cetus | System corruption reached 30% 9783 | -5/Cetus | Started Cetus Manufacturing Module 9808 | -5/Cetus | Manufactured an Enhanced Grunt 9833 | -5/Cetus | Manufactured an Enhanced Grunt 9843 | -5/Cetus | Escorted A7 to Cetus Mainframe 9858 | -5/Cetus | Manufactured an Enhanced Grunt 9883 | -5/Cetus | Manufactured an Enhanced Grunt 9908 | -5/Cetus | Manufactured an Enhanced Grunt 9915 | -5/Cetus | Discovered new exit (range 15) 9943 | -5/Cetus | Spotted Cetus Guard 9943 | -5/Cetus | Spotted Cetus Guard 9948 | -5/Cetus | Spotted Cetus Guard 9949 | -5/Cetus | Destroyed Cetus Guard 9953 | -5/Cetus | Destroyed Cetus Guard 9953 | -5/Cetus | Spotted Cetus Guard 9954 | -5/Cetus | Allies destroyed Cetus Guard 9957 | -5/Cetus | Allies destroyed Cetus Guard 9966 | -5/Cetus | Discovered new exit (range 16) 9974 | -5/Cetus | Met Revision 17 10105 | -5/Cetus | Entered Factory 10105 | -4/Factory | Accompanied by 5 allies (A7) 10105 | -4/Factory | Evolved 2 slots: Utility x2 10110 | -4/Factory | Received a hacking code to weaken MAIN.C 10874 | -4/Factory | Lost 3 parts (1u2w) 11355 | -4/Factory | First assault squad dispatched 11395 | -4/Factory | Identified exit to Research 11530 | -4/Factory | Incoming assault squad redirected 11543 | -4/Factory | Garrison activated, responded to threat 11576 | -4/Factory | Spotted B-86 Titan 11601 | -4/Factory | Lost 8 parts (2p1n3u2w) 11684 | -4/Factory | Lost 5 parts (1n4u) 11717 | -4/Factory | Entered Research 11717 | -3/Research | Evolved 2 slots: Propulsion x1, Utility x1 11842 | -3/Research | Found Prototype Processor 11842 | -3/Research | Identified Exp. Signal Interpreter 11845 | -3/Research | Found Exp. Signal Interpreter 11868 | -3/Research | Build established: Scavenger-Mutant 11917 | -3/Research | Revision forces began assault on 0b10 11947 | -3/Research | Met up with Revision 17++ 12069 | -3/Research | Spotted B-86 Titan 12113 | -3/Research | Lost 3 parts (2u1w) 12415 | -3/Research | Build established: Scavenger-Skirmisher 12417 | -3/Research | Research terminal network offline 12488 | -3/Research | Discovered new exit (range 20) 12532 | -3/Research | Identified exit to Testing 12534 | -3/Research | Entered Testing 12688 | -3/Testing | Found Prototype Processor 12688 | -3/Testing | Identified Spectral Analyzer 13020 | -3/Testing | System corruption reached 10% 13042 | -3/Testing | Scanned by Researcher 13157 | -3/Testing | Found Prototype Device 13157 | -3/Testing | Identified Exp. Thermal Shield 13276 | -3/Testing | Discovered new exit (range 16) 13429 | -3/Testing | Lost 3 parts (1n1u1w) 13503 | -3/Testing | Found Prototype Energy Cannon 13713 | -3/Testing | System corruption reached 30% 13717 | -3/Testing | Identified exit to Research 13725 | -3/Testing | Entered Research 13725 | -2/Research | Evolved 2 slots: Utility x2 13753 | -2/Research | Lost 5 parts (4n1u) 13887 | -2/Research | Self-destructed Last Messages --------------- 13704_ EUCNVURVMC09LTOA INRT>T=FVJR6EK:S 13711_ P-80 Master resets P-80 Master, system corruption cleaned. 13712_ Arm. Medium Treads destroyed. 13712_ Hvy. Treads destroyed. 13717_ EXIT=IDENTIFIED: RESEARCH 13719_ P-80 Master resets P-80 Master, system corruption cleaned. 13722_ Med. Treads destroyed. 13722_ Adv. Sensor Array destroyed. 13724_ System corrupted: Matter fused (-10). PARAMETERS=UTILITY+2 LOCATION=RESEARCH GOAL=ESCAPE 13869_ ALERT: All DSF locations entering lockdown mode. 13870_ G-73 Enforcer shuts down. 13870_ Slug penetrates G-73 Enforcer. 13873_ Adv. Heat Sink destroyed. 13873_ Imp. KE Penetrator destroyed. 13876_ Particle Reactor destroyed. 13879_ Com. HERF Cannon destroyed. 13886_ G-73 Enforcer reactivates. Map ----- +----------------------------------------------------+ | | | | | | | | | | | | | | | | | | | | | | | ?????????????????????????????????????????????????? | | ?????????????????????????????????????????????????? | | ?????????????????????????????????????????????????? | | ?????????????????????????????????????????????????? | | ?????????????????????????????????????????????????? | | ?????????????????????????????????????????????????? | | ?????????????????????????????????????????????????? | | ?????????????????????????????????????????????????? | | ?????????????????????????????????????????????????? | | ?????????????????????????????????????????????????? | | ????????????????#######################??????????? | | ????????????????# +??????????? | | ????????????????# g #??????????? | | ????????????????# g + ?????????? | | ????????????????# @ g g #??????????? | | ?????????????#######+######+######???????????????? | | ?????????????# #?????????????????????????? | | ?????????????# #?????????????????????????? | | ?????????????# #?????????????????????????? | | ?????????????# #?????????????????????????? | | ?????????????# #?????????????????????????? | | ?????????????# """"" #?????????????????????????? | | ?????????????# """"" #?????????????????????????? | | ?????????????# """"" #?????????????????????????? | | ?????????????###########?????????????????????????? | | ?????????????????????????????????????????????????? | | ?????????????????????????????????????????????????? | | ?????????????????????????????????????????????????? | | ?????????????????????????????????????????????????? | | ?????????????????????????????????????????????????? | | ?????????????????????????????????????????????????? | | ?????????????????????????????????????????????????? | | ?????????????????????????????????????????????????? | | ?????????????????????????????????????????????????? | | ?????????????????????????????????????????????????? | | ?????????????????????????????????????????????????? | | ?????????????????????????????????????????????????? | | ?????????????????????????????????????????????????? | | ?????????????????????????????????????????????????? | +----------------------------------------------------+ Best States ------------- Heat Dissipation 119 Coolant Potential 100 Energy Generation 41 Energy Capacity 950 Matter Stores 300 Matter Capacity 300 Sight Range 16 Robot Scan Range 16 Terrain Scan Range 20 Terrain Scan Density 210 Jamming Range 16 Base Temperature (-) 200 Armor Coverage 1350 Utility Shielding 66 Weapon Shielding 66 Weapon Cycling 20 Evasion (%) 55 Targeting Accuracy 8 Target Analysis 8 Recoil Reduction 6 Offensive Hacking 10 Defensive Hacking 10 Item Schematics ----------------- Combat Drone Bay | -7/Data Miner | Free Lgt. Regenerative Plating | -7/Data Miner | Free Cld. Cesium-ion Thruster | -7/Data Miner | Free Gravity Neutralizer | -7/Data Miner | Free Imp. Lightning Gun | -7/Data Miner | Free Gyrokinetic Inverter | -7/Data Miner | Free Lyr. Heavy Armor Plating | -7/Data Miner | Free Lrn. Proton Cannon | -7/Data Miner | Free Imp. Heavy Armor Plating | -7/Data Miner | Free Enh. Gauss Cannon | -7/Data Miner | Free Adv. Cooling System | -7/Data Miner | Free Field Propulsion Array | -7/Data Miner | Free Hellfire Missile Launcher | -3/Testing | Archive Imp. KE Penetrator | -3/Testing | Archive Centrium Heavy Armor Plating | -3/Testing | Archive Centrium Medium Armor Plating | -3/Testing | Archive Exp. Myomer Leg | -3/Testing | Archive Adv. EM Shield | -3/Testing | Archive Robot Schematics ------------------ E-15 Imp | -7/Data Miner | Free G-47 Trooper | -7/Data Miner | Free W-25 Informer | -7/Data Miner | Free B-48 Gladiator | -7/Data Miner | Free H-66 Slayer | -7/Data Miner | Free R-10 Processor | -7/Data Miner | Free Fabricated ------------ Nothing Repaired ---------- Seismic Detector | 25% | -9/Materials Lgt. EM Pulse Cannon | 2% | -9/Materials Lyr. Medium Armor Plating | 72% | -6/Factory Alien Tech Used ----------------- None Achievements -------------- None Challenges ------------ None Game ------ Seed ExpertParticleExpander Manual? 0 Play Time 02:39:12 Cumulative 73.5 hours Start 2025.06.05 @ 19:15:45 End 2025.06.06 @ 00:03:33 Sessions 3 Manual Loads 0 Difficulty Rogue Special Mode None Game No. 51 Rogue 51 Adventurer 0 Explorer 0 Win Type - Total 6 Types 2/0/2/0/1/0/0/0/0/1 Lore% 54 Gallery% 52 Achievement% 58 Wizard Run 0 Options --------- Layout 0 ASCII 0 Keyboard 1 Movement Vi Keybinds 0 Fullscreen 2 Font 18/SmallcapsGlow Map View 76x50 Zoom Use 0% Tactical HUD 1 Map Filters NONE Filters NONE Steam 1 RUN: a0bba2be-b4b0-4adf-bf1f-f8d50cedca3b